[Event "WWRR B-Group 2024"]
[Site "Wachtebeke"]
[Date "2024.02.12"]
[Round "5.1"]
[White "Nemegeer, Arne"]
[Black "Toulzac, Pierre-Yves"]
[Result "1-0"]
[ECO "B06"]
[WhiteElo "2100"]
[BlackElo "2046"]
[Annotator "TA"]
[PlyCount "83"]
[EventDate "2024.02.12"]
[EventType "tourn"]
[EventCountry "BEL"]
[SourceTitle "playchess.com"]
[Source "ChessBase"]
[SourceQuality "1"]
[TimeControl "40/5400+30:900+30"]

{[%evp 10,83,35,40,41,25,36,13,58,56,74,56,62,47,81,22,75,94,75,31,35,-264,-243,-242,-241,-246,-214,-237,-223,-304,-268,-299,-366,-348,-343,-295,-308,-299,-299,-298,-171,-365,-130,-123,-175,-190,-190,-327,-230,-312,-357,-334,-340,-343,-153,-168,-162,-125,-129,-130,584,510,496,464,614,613,951,951,1228,1218,1136,1133,1112,393,1106,1090]} 1. e4 {[%emt 0:00:02]} g6 {[%emt 0:02:29]} 2. d4 {[%emt 0:00:04]} Bg7 {[%emt 0:00:09]} 3. Nc3 {[%emt 0:00:05]} d6 {[%emt 0:00:05]} 4. Be3 {[%emt 0:00:37]} a6 {[%emt 0:00:07]} 5. Qd2 {[%emt 0:00:28]} b5 {[%emt 0:00:13]} 6. O-O-O {[%emt 0:00:28]} Bb7 {[%emt 0:00:35]} 7. f3 {[%emt 0:00:29]} Nd7 {[%emt 0:00:17]} 8. h4 {[%emt 0:00:32]} h6 {[%emt 0:00:35] The position is equal.} 9. Nh3 {[%emt 0:00:23]} Rc8 {[%emt 0:00:07]} 10. g4 {[%emt 0:03:39] White is more active.} c5 {[%emt 0:02:30]} 11. dxc5 {[%emt 0:00:21]} Nxc5 {[%emt 0:01:51]} 12. Bd4 {[%emt 0:01:18]} (12. Kb1 $1 $16) 12... e5 {[%emt 0:06:13]} (12... Bxd4 $11 13. Qxd4 Nf6) 13. Be3 {[%emt 0:02:42]} b4 {[%emt 0:04:17]} 14. Nd5 {[%emt 0:02:35]} (14. Bxc5 {simplifies} dxc5 15. Na4 Qxd2+ 16. Rxd2 Ne7 17. b3) 14... b3 {[%emt 0:01:04]} 15. Qb4 $2 {[%emt 0:11:04][%mdl 8192]} (15. Bc4 $14 {was the only good move.} bxc2 16. Qxc2) 15... bxa2 $19 {[%emt 0:02:14]} (15... Qxh4 $2 16. axb3 Bxd5 17. Rxd5 $18) 16. Kd2 {[%emt 0:00:05] aiming for Bxc5.} Bxd5 {[%emt 0:03:42]} (16... Qxh4 $2 17. Bxc5 Bxd5 18. Bxd6 $18) 17. exd5 {[%emt 0:00:04]} Ne7 {[%emt 0:01:36]} (17... Qxh4 18. Nf2 Qd8 19. Qa3 $17) 18. Bc4 {[%emt 0:01:24] [#]} O-O $1 {[%emt 0:05:33] Strongly threatening ...e4.} (18... Rb8 19. Qa3) 19. c3 {[%emt 0:03:58]} e4 {[%emt 0:01:37]} 20. Nf2 {[%emt 0:07:44]} exf3 {[%emt 0:04:13]} 21. Bxa2 {[%emt 0:00:22]} Qd7 {[%emt 0:11:15]} 22. Kc1 {[%emt 0:06:51]} Rb8 {[%emt 0:19:54]} 23. Qa3 {[%emt 0:00:49]} Rfc8 {[%emt 0:00:39]} 24. Bd4 {[%emt 0:04:57] [#]} a5 {[%emt 0:06:16]} 25. Rh3 $2 {[%emt 0:05:21]} (25. Bxg7 Kxg7 26. Rh3) 25... Na4 $2 {[%emt 0:03:02]} (25... h5 $19 26. gxh5 Bxd4 27. Rxd4 Rb4 (27... gxh5 28. Rxf3 Ng6 29. Nd3 $17)) 26. Bxg7 $17 {[%emt 0:03:59]} Rxb2 {[%emt 0:04:44]} (26... Kxg7 $17 27. Rxf3 Rxb2 (27... Nxb2 28. Rd4 $17)) 27. Rxf3 $19 {[%emt 0:11:09]} (27. Bxh6 $2 {is the wrong capture.} Rxf2 28. c4 Qxg4 29. Qxa4 Qxh3 $19) 27... Kxg7 {[%emt 0:03:38]} 28. Rf1 {[%emt 0:04:19]} (28. Rd2 $142 Rb4 29. Re2) 28... f5 {[%emt 0:07:22]} 29. gxf5 {[%emt 0:04:37]} Nxf5 {[%emt 0:01:03]} 30. Nd1 {[%emt 0:00:03]} Re2 {[%emt 0:03:12][%cal Oa4c5]} 31. h5 {[%emt 0:01:24] White is weak on the dark squares} Nc5 {[%emt 0:02:37] Excellent horsemanship.} (31... Kg8 $19 {is more deadly. ...Nd4 is the strong threat.} 32. R1f2 Rxf2 33. Rxf2 Nd4 (33... gxh5 34. c4 $17)) 32. hxg6 $17 {[%emt 0:00:42] [#]} Qb5 $1 {[%emt 0:00:28]} 33. c4 {[%emt 0:07:13]} Qb4 {[%emt 0:02:24] ( -> ...Qd2+)} 34. Qc3+ {[%emt 0:00:05]} Kxg6 $2 {[%emt 0:00:58][%mdl 8192]} (34... Kg8 $1 $17 {and life is bright.} 35. Qxb4 axb4) 35. Rxf5 {[%emt 0:06:23]} Qxc3+ {[%emt 0:00:05]} 36. Nxc3 {[%emt 0:00:07]} Nd3+ {[%emt 0:00:29]} 37. Kd1 {[%emt 0:01:11]} Rg2 {[%emt 0:00:48]} 38. Bb1 {[%emt 0:03:19]} Nb2+ {[%emt 0:00:03]} 39. Kc1 {[%emt 0:00:11] Intending R5f2+ and mate.} Kg7 {[%emt 0:00:25]} 40. Rf7+ {[%emt 0:00:23]} Kg8 {[%emt 0:00:07]} 41. Bh7+ {[%emt 0:15:31]} Kh8 {[%emt 0:15:02]} 42. Be4 {[%emt 0:00:06] What a bad dream for Black.   Weighted Error Value: White=0.36/Black=0.55.  Loses game:     	White=1     	Black=1      Missed win:     	---       	Black=2      Mistake:       	White=3     	Black=3      Inaccurate:     	White=3     	Black=4      OK:         	White=10    	Black=12     Best:        	White=5     	Black=2      Strong:       	---       	Black=1} 1-0

[Event "WWRR B-Group 2024"]
[Site "Wachtebeke"]
[Date "2024.02.12"]
[Round "5.2"]
[White "Schrik, Rachid"]
[Black "Verduyn, Frederic"]
[Result "0-1"]
[ECO "E94"]
[WhiteElo "2179"]
[BlackElo "2087"]
[Annotator "RC"]
[PlyCount "78"]
[EventDate "2024.02.12"]
[EventType "tourn"]
[EventCountry "BEL"]
[SourceTitle "playchess.com"]
[Source "ChessBase"]
[SourceQuality "1"]
[TimeControl "40/5400+30:900+30"]

1. d4 {[%emt 0:00:05]} Nf6 {[%emt 0:00:29]} 2. c4 {[%emt 0:00:38]} g6 {[%emt 0:00:30]} 3. Nc3 {[%emt 0:00:32]} Bg7 {[%emt 0:00:21]} 4. e4 {[%emt 0:00:27]} d6 {[%emt 0:00:35]} 5. Be2 {[%emt 0:02:36]} O-O {[%emt 0:01:56]} 6. Be3 {[%emt 0:00:29]} Nbd7 {[%emt 0:01:37]} 7. Nf3 {[%emt 0:00:34]} e5 {[%emt 0:00:48]} 8. O-O {[%emt 0:01:32]} Qe7 {[%emt 0:01:50]} 9. d5 {[%emt 0:04:18]} c5 {[%emt 0:02:11]} 10. Nd2 {[%emt 0:04:52]} Kh8 {[%emt 0:02:14]} 11. a3 {[%emt 0:14:15]} Ng8 {[%emt 0:02:38]} 12. f3 {[%emt 0:02:47]} Bh6 {[%emt 0:04:06]} 13. Bf2 {[%emt 0:04:23]} f5 {[%emt 0:00:38]} 14. exf5 {[%emt 0:03:00]} gxf5 {[%emt 0:02:39]} 15. b4 {[%emt 0:01:16]} b6 {[%emt 0:01:18]} 16. Qc2 {[%emt 0:04:41]} Ndf6 {[%emt 0:08:27]} 17. Kh1 {[%emt 0:09:45]} Ne8 {[%emt 0:04:55]} 18. Bd3 {[%emt 0:05:36]} Ngf6 {[%emt 0:06:32]} 19. Rfe1 {[%emt 0:06:10]} Rg8 {[%emt 0:05:39]} 20. Nf1 {[%emt 0:04:06]} Qg7 {[%emt 0:05:28]} 21. g3 {[%emt 0:01:38]} e4 {[%emt 0:02:54]} 22. fxe4 {[%emt 0:06:47]} Ng4 {[%emt 0:02:35]} 23. Bg1 {[%emt 0:09:05]} f4 {[%emt 0:03:38]} 24. bxc5 {[%emt 0:03:42]} bxc5 {[%emt 0:01:13]} 25. e5 {[%emt 0:01:33]} Nxe5 {[%emt 0:02:02]} 26. Ne4 {[%emt 0:01:14]} Bf5 {[%emt 0:12:25]} 27. Rad1 {[%emt 0:01:39]} Bg4 {[%emt 0:01:21]} 28. Be2 {[%emt 0:03:25]} Nf3 {[%emt 0:04:07]} 29. Qc3 {[%emt 0:00:41]} Nxe1 {[%emt 0:02:41]} 30. Bxg4 {[%emt 0:00:16]} Qxc3 {[%emt 0:01:37]} 31. Nxc3 {[%emt 0:00:01]} Rxg4 {[%emt 0:00:40]} 32. Rxe1 {[%emt 0:00:09]} fxg3 {[%emt 0:00:56]} 33. hxg3 {[%emt 0:03:03]} Rxc4 {[%emt 0:01:03]} 34. Re6 {[%emt 0:00:08]} Rxc3 {[%emt 0:02:18]} 35. Rxh6 {[%emt 0:00:02]} Rxa3 {[%emt 0:01:30]} 36. Ne3 {[%emt 0:00:15]} Rd3 {[%emt 0:00:51]} 37. Re6 {[%emt 0:01:38]} a5 {[%emt 0:01:07]} 38. g4 {[%emt 0:00:02]} a4 {[%emt 0:01:15]} 39. Nc4 {[%emt 0:00:03]} a3 {[%emt 0:01:18]} 0-1

[Event "WWRR B-Group 2024"]
[Site "Wachtebeke"]
[Date "2024.02.12"]
[Round "5.3"]
[White "Vandenhole, Kobe"]
[Black "Ruzhansky, Elias"]
[Result "1/2-1/2"]
[ECO "B30"]
[WhiteElo "2081"]
[BlackElo "2133"]
[Annotator "RC"]
[PlyCount "81"]
[EventDate "2024.02.12"]
[EventType "tourn"]
[EventCountry "BEL"]
[SourceTitle "playchess.com"]
[Source "ChessBase"]
[SourceQuality "1"]
[TimeControl "40/5400+30:900+30"]

1. e4 {[%emt 0:00:14]} c5 {[%emt 0:00:15]} 2. Nf3 {[%emt 0:00:07]} Nc6 {[%emt 0:00:05]} 3. Bb5 {[%emt 0:00:16]} Nf6 {[%emt 0:00:06]} 4. e5 {[%emt 0:00:18]} Nd5 {[%emt 0:00:06]} 5. b3 {[%emt 0:00:11]} Nc7 {[%emt 0:00:43]} 6. Bxc6 {[%emt 0:00:19]} dxc6 {[%emt 0:00:13]} 7. Bb2 {[%emt 0:00:15]} h6 {[%emt 0:01:55]} 8. d3 {[%emt 0:01:46]} Bf5 {[%emt 0:05:16]} 9. O-O {[%emt 0:03:24]} g5 {[%emt 0:14:01]} 10. e6 {[%emt 0:03:14]} f6 {[%emt 0:02:53]} 11. Ne5 {[%emt 0:00:52]} g4 {[%emt 0:00:05]} 12. Nf7 {[%emt 0:00:45]} Qc8 {[%emt 0:14:07]} 13. Nxh8 {[%emt 0:00:13]} Nxe6 {[%emt 0:00:04]} 14. Ng6 {[%emt 0:10:20]} Bxg6 {[%emt 0:00:11]} 15. Qxg4 {[%emt 0:00:08]} Kf7 {[%emt 0:00:54]} 16. Nd2 {[%emt 0:04:10]} Bg7 {[%emt 0:00:35]} 17. Qg3 {[%emt 0:03:35]} Qd7 {[%emt 0:01:47]} 18. Nf3 {[%emt 0:05:41]} Rg8 {[%emt 0:06:36]} 19. Nh4 {[%emt 0:06:15]} Bh7 {[%emt 0:02:35]} 20. f4 {[%emt 0:03:01]} Nd4 {[%emt 0:02:23]} 21. Bxd4 {[%emt 0:04:29]} Qxd4+ {[%emt 0:00:40]} 22. Qf2 {[%emt 0:01:46]} f5 {[%emt 0:08:32]} 23. Rae1 {[%emt 0:03:19]} Qxf2+ {[%emt 0:00:48]} 24. Kxf2 {[%emt 0:00:08]} Bd4+ {[%emt 0:00:08]} 25. Kf3 {[%emt 0:01:13]} Kf6 {[%emt 0:07:42]} 26. g3 {[%emt 0:04:15]} Bc3 {[%emt 0:03:14]} 27. Re2 {[%emt 0:00:34]} Rg7 {[%emt 0:02:04]} 28. h3 {[%emt 0:05:28]} Bg8 {[%emt 0:06:43]} 29. g4 {[%emt 0:01:58]} Bd5+ {[%emt 0:00:09]} 30. Kg3 {[%emt 0:00:10]} Be6 {[%emt 0:04:23]} 31. Rxe6+ {[%emt 0:04:26]} Kxe6 {[%emt 0:00:04]} 32. Nxf5 {[%emt 0:00:04]} Rh7 {[%emt 0:00:03]} 33. Ne3 {[%emt 0:01:38]} Rh8 {[%emt 0:01:17]} 34. Kh4 {[%emt 0:00:58]} h5 {[%emt 0:01:35]} 35. f5+ {[%emt 0:00:23]} Ke5 {[%emt 0:07:35]} 36. g5 {[%emt 0:02:01]} b5 {[%emt 0:00:04]} 37. f6 {[%emt 0:01:15]} exf6 {[%emt 0:00:20]} 38. gxf6 {[%emt 0:00:10]} Ke6 {[%emt 0:00:20]} 39. Kg5 {[%emt 0:01:54]} Rg8+ {[%emt 0:00:29]} 40. Kxh5 {[%emt 0:00:19]} Bxf6 {[%emt 0:00:08]} 41. Ng4 {[%emt 0:24:27]} 1/2-1/2

[Event "WWRR B-Group 2024"]
[Site "Wachtebeke"]
[Date "2024.02.12"]
[Round "5.4"]
[White "Raptis, Filippos"]
[Black "Dreelinck, Adriaan"]
[Result "1/2-1/2"]
[ECO "C00"]
[WhiteElo "2174"]
[BlackElo "2205"]
[Annotator "TA"]
[PlyCount "36"]
[EventDate "2024.02.12"]
[EventType "tourn"]
[EventCountry "BEL"]
[SourceTitle "playchess.com"]
[Source "ChessBase"]
[SourceQuality "1"]
[TimeControl "40/5400+30:900+30"]

{[%evp 9,36,8,9,-2,5,0,0,-4,0,0,0,27,8,-6,8,-44,-49,-46,0,-14,0,0,0,-58,0,0,0,-32,-45]} 1. e4 {[%emt 0:00:03]} e6 {[%emt 0:00:07]} 2. d3 {[%emt 0:00:04]} d5 {[%emt 0:00:31]} 3. Nd2 {[%emt 0:00:07]} Nf6 {[%emt 0:01:00]} 4. Ngf3 {[%emt 0:00:06]} Nc6 {[%emt 0:00:48]} 5. c3 {[%emt 0:00:19]} e5 {[%emt 0:00:47]} 6. exd5 {[%emt 0:00:48]} Nxd5 {[%emt 0:00:38]} 7. Nc4 {[%emt 0:00:19]} f6 {[%emt 0:02:27]} 8. Be2 {[%emt 0:00:54] The position is equal.} Be6 {[%emt 0:01:58]} 9. O-O {[%emt 0:04:50]} Qd7 {[%emt 0:00:49]} 10. d4 {[%emt 0:01:29]} e4 {[%emt 0:05:59]} 11. Ne1 {[%emt 0:00:56]} O-O-O {[%emt 0:06:31][%cal Oh7h5]} 12. f4 {[%emt 0:05:40]} (12. Nd2 $11) 12... exf3 {[%emt 0:05:55]} 13. Nxf3 {[%emt 0:00:32]} g5 {[%emt 0:00:46]} 14. Ne3 {[%emt 0:17:16]} h5 {[%emt 0:06:22]} 15. Nxd5 $1 {[%emt 0:16:22]} Bxd5 {[%emt 0:07:37]} 16. Qc2 {[%emt 0:03:06]} ({White should play} 16. Nd2 $11) 16... Re8 {[%emt 0:04:46]} (16... h4 $15) 17. Bd3 $11 {[%emt 0:00:59]} Bd6 {[%emt 0:03:23]} 18. Bd2 {[%emt 0:02:45]} (18. Bg6 $5) 18... Kb8 {[%emt 0:05:13] Weighted Error Value: White=0.20 (precise) /Black=0.11 (very precise) .  Mistake:       	White=2     	Black=1      Inaccurate:     	White=1     	Black=2      OK:         	White=5     	Black=3      Best:        	White=1     	---        Strong:       	White=1     	---} 1/2-1/2

[Event "WWRR B-Group 2024"]
[Site "Wachtebeke"]
[Date "2024.02.12"]
[Round "5.5"]
[White "Dreelinck, Jacob"]
[Black "Kurt, Sascha"]
[Result "1-0"]
[ECO "B82"]
[WhiteElo "2196"]
[BlackElo "2002"]
[Annotator "TA"]
[PlyCount "59"]
[EventDate "2024.02.12"]
[EventType "tourn"]
[EventCountry "BEL"]
[SourceTitle "playchess.com"]
[Source "ChessBase"]
[SourceQuality "1"]
[TimeControl "40/5400+30:900+30"]

{[%evp 15,58,30,39,0,14,14,73,24,108,97,158,133,207,208,216,118,118,111,156,133,156,111,122,-61,277,264,281,281,283,234,734,736,1091,1062,1401,1356,29984,29985,29990,29991,29991,29992,29998,29999,29999]} 1. e4 {[%emt 0:00:02]} c5 {[%emt 0:00:08]} 2. Nf3 {[%emt 0:00:06]} d6 {[%emt 0:00:04]} 3. d4 {[%emt 0:00:03]} cxd4 {[%emt 0:00:03]} 4. Nxd4 {[%emt 0:00:04]} Nf6 {[%emt 0:00:05]} 5. Nc3 {[%emt 0:00:04]} e6 {[%emt 0:00:03][%cal Be7e6,Be6e5][%mdl 32]} 6. Be3 {[%emt 0:00:04]} Nc6 {[%emt 0:00:03]} 7. f4 {[%emt 0:00:14]} Be7 {[%emt 0:00:35]} 8. Qf3 {[%emt 0:00:05]} e5 {[%emt 0:01:08]} 9. Nde2 {[%emt 0:00:20]} O-O {[%emt 0:01:23]} 10. f5 {[%emt 0:03:54]} Qa5 {[%emt 0:06:16]} (10... b5 $11) 11. O-O-O {[%emt 0:00:32]} ({White should try} 11. g4 $16) 11... Rd8 {[%emt 0:04:51]} (11... b5 $11 {remains equal.}) 12. Kb1 $16 {[%emt 0:05:37]} b5 {[%emt 0:09:26]} (12... Bd7 $142) 13. g4 {[%emt 0:16:09][%cal Bg2g4,Bg4g5][%mdl 32]} b4 {[%emt 0:10:35] [#]} (13... d5 $16) 14. Nd5 $1 $18 {[%emt 0:00:49]} Nxd5 {[%emt 0:00:07]} 15. Rxd5 {[%emt 0:05:50]} (15. exd5 $18 e4 16. Qxe4) 15... Qc7 $16 {[%emt 0:00:18]} 16. g5 {[%emt 0:00:39]} Bb7 {[%emt 0:00:43]} 17. f6 {[%emt 0:11:11]} Bf8 {[%emt 0:01:10]} 18. h4 {[%emt 0:03:17]} (18. fxg7 Bxg7 19. Ng3 b3 (19... Nd4 $2 20. Bxd4 exd4 21. Bd3 $18) 20. axb3 Nb4 $16) 18... Rac8 {[%emt 0:07:37][%cal Oc6d4] ...Nd4! would now be deadly.} 19. Ka1 $2 {[%emt 0:11:03] [#]} (19. fxg7 Bxg7 20. c4 bxc3 (20... Nd4 21. Nxd4 exd4 22. Bd2 $16) 21. Nxc3 Nd4 $11) (19. Qf2 $16) 19... Nd4 $2 {[%emt 0:03:28][%mdl 8192] Loses the game.} 20. Nxd4 $18 {[%emt 0:03:38]} Bxd5 {[%emt 0:04:01]} 21. exd5 {[%emt 0:00:07]} ({Don't go for} 21. Nb5 $2 Qxc2 $19) 21... exd4 {[%emt 0:00:27]} 22. Bxd4 {[%emt 0:00:07] Strongly threatening Bd3. Black is weak on the light squares} b3 $2 {[%emt 0:13:26]} (22... Qa5 23. Bd3 b3 24. cxb3 Qd2) 23. c3 {[%emt 0:00:56]} ({Inferior is} 23. axb3 Qa5+ 24. Kb1 Qe1+ 25. Ka2 Qa5+ 26. Kb1 Qe1+ 27. Ka2 Qa5+ 28. Kb1 $11) 23... Qa5 {[%emt 0:04:56]} 24. a3 {[%emt 0:00:17] Active counter play!} Re8 {[%emt 0:02:12]} 25. Bd3 {[%emt 0:00:20] fxg7 is the strong threat. This pair of bishops is nice.} g6 {[%emt 0:09:38]} 26. h5 {[%emt 0:00:50] White mates.} Rc7 {[%emt 0:01:07]} 27. hxg6 {[%emt 0:04:21]} fxg6 {[%emt 0:00:18] [#]} 28. Bxg6 $1 {[%emt 0:00:19][%mdl 512]} hxg6 {[%emt 0:00:49] [#]} (28... Re1+ 29. Rxe1) 29. f7+ $1 {[%emt 0:00:04][%mdl 512]} Rxf7 {[%emt 0:00:08]} 30. Rh8# {[%emt 0:34:28] Weighted Error Value: White=0.31/Black=0.69.  Loses game:     	---       	Black=1      Mistake:       	White=3     	Black=5      Inaccurate:     	---       	Black=2      OK:         	White=4     	Black=4      Best:        	White=3     	Black=1      Strong:       	White=1     	---} 1-0

[Event "WWRR B-Group 2024"]
[Site "Wachtebeke"]
[Date "2024.02.13"]
[Round "6.1"]
[White "Toulzac, Pierre-Yves"]
[Black "Kurt, Sascha"]
[Result "1/2-1/2"]
[ECO "B52"]
[WhiteElo "2046"]
[BlackElo "2002"]
[Annotator "NA RC"]
[PlyCount "62"]
[EventDate "2024.02.12"]
[EventType "tourn"]
[EventCountry "BEL"]
[SourceTitle "playchess.com"]
[Source "ChessBase"]
[SourceQuality "1"]
[TimeControl "40/5400+30:900+30"]

1. e4 {[%emt 0:00:08]} c5 {[%emt 0:00:09]} 2. Nf3 {[%emt 0:00:11]} d6 {[%emt 0:00:04]} 3. Bb5+ {[%emt 0:01:07]} Bd7 {[%emt 0:00:04]} 4. c4 {[%emt 0:00:38]} g6 {[%emt 0:00:20]} 5. O-O {[%emt 0:01:26]} Bg7 {[%emt 0:00:11]} 6. d4 {[%emt 0:02:02]} cxd4 {[%emt 0:00:15]} 7. Bxd7+ {[%emt 0:03:32]} Qxd7 {[%emt 0:00:05]} 8. Nxd4 {[%emt 0:00:32]} Nc6 {[%emt 0:00:32]} 9. Be3 {[%emt 0:02:24]} Nf6 {[%emt 0:00:12]} 10. f3 {[%emt 0:00:58]} O-O {[%emt 0:00:18]} 11. Nc3 {[%emt 1:23:02]} Rac8 {[%emt 0:00:20]} 12. b3 {[%emt 0:00:00]} a6 {[%emt 0:00:06]} 13. a4 {[%emt 0:00:00]} e6 {[%emt 0:00:39]} 14. Nde2 {[%emt 0:00:00]} Rfd8 {[%emt 0:00:31]} 15. Bb6 {[%emt 0:00:00]} Re8 {[%emt 0:00:25]} 16. Ra2 {[%emt 0:00:00]} Ne7 {[%emt 0:05:01]} 17. Rd2 {[%emt 0:00:00]} Rc6 {[%emt 0:00:07]} 18. a5 {[%emt 0:00:00]} Rec8 {[%emt 0:09:17]} 19. Nd4 {[%emt 0:00:00]} Rxb6 {[%emt 0:01:22]} 20. axb6 {[%emt 0:00:00]} d5 {[%emt 0:01:58]} 21. Nde2 {[%emt 0:00:00]} Qc6 {[%emt 0:01:36]} 22. exd5 {[%emt 0:00:00]} Qxb6+ {[%emt 0:01:13]} 23. Kh1 {[%emt 0:00:00]} Nf5 {[%emt 0:09:08]} 24. Qb1 {[%emt 0:00:00]} exd5 {[%emt 0:13:08]} 25. Nxd5 {[%emt 0:00:00]} Nxd5 {[%emt 0:00:07]} 26. cxd5 {[%emt 0:00:00]} Qb4 {[%emt 0:00:23]} 27. Qd3 {[%emt 0:00:00]} Re8 {[%emt 0:17:20]} 28. d6 {[%emt 0:00:00]} Re3 {[%emt 0:22:55]} 29. Qd5 {[%emt 0:00:00]} Re5 {[%emt 0:01:54]} 30. Qd3 {[%emt 0:00:00]} Re3 {[%emt 0:00:27]} 31. Qd5 {[%emt 0:00:00]} Re5 {[%emt 0:00:11]} 1/2-1/2

[Event "WWRR B-Group 2024"]
[Site "Wachtebeke"]
[Date "2024.02.13"]
[Round "6.2"]
[White "Dreelinck, Adriaan"]
[Black "Dreelinck, Jacob"]
[Result "1/2-1/2"]
[ECO "B06"]
[WhiteElo "2205"]
[BlackElo "2196"]
[Annotator "TA"]
[PlyCount "48"]
[EventDate "2024.02.12"]
[EventType "tourn"]
[EventCountry "BEL"]
[SourceTitle "playchess.com"]
[Source "ChessBase"]
[SourceQuality "1"]
[TimeControl "40/5400+30:900+30"]

{[%evp 10,48,56,37,43,33,42,26,47,19,78,50,75,45,80,81,110,108,121,39,46,0,0,0,87,31,147,-38,-47,-16,0,35,96,96,660,30,31,21,34,0,0]} 1. d4 {[%emt 0:00:03]} g6 {[%emt 0:00:02]} 2. Nc3 {[%emt 0:00:02]} Bg7 {[%emt 0:00:03]} 3. e4 {[%emt 0:00:01]} d6 {[%emt 0:00:02]} 4. Be3 {[%emt 0:00:04]} a6 {[%emt 0:00:03]} 5. Qd2 {[%emt 0:00:03]} b5 {[%emt 0:00:03]} 6. f3 {[%emt 0:00:02]} Bb7 {[%emt 0:00:03]} 7. O-O-O {[%emt 0:00:03]} Nd7 {[%emt 0:00:03]} 8. Nge2 {[%emt 0:00:05]} Rc8 {[%emt 0:00:02] White has an edge.} 9. Nf4 {[%emt 0:00:03]} e6 {[%emt 0:00:03]} (9... c5 $11) 10. Kb1 {[%emt 0:00:06]} Ne7 {[%emt 0:00:03]} 11. g4 {[%emt 0:00:03][%cal Bg2g4,Bg4g5][%mdl 32]} Nb6 {[%emt 0:00:04]} 12. a3 {[%emt 0:00:02]} c6 {[%emt 0:00:04]} 13. h4 {[%emt 0:00:03]} h6 {[%emt 0:00:04]} 14. Qe1 {[%emt 0:00:03] White is more active.} (14. Qf2 $16) 14... Qc7 $14 {[%emt 0:00:03]} 15. Bh3 {[%emt 0:00:03]} (15. Ng2 $14 {was preferrable.}) 15... Nc4 {[%emt 0:00:06]} 16. g5 {[%emt 0:00:04]} Qb6 {[%emt 0:00:03]} (16... hxg5 $11 {keeps the balance.} 17. hxg5 c5 18. dxc5 dxc5) 17. Bf2 {[%emt 0:00:05]} (17. Bc1 $16) 17... c5 {[%emt 0:00:02] [#]} (17... Qa5 $14) 18. dxc5 $2 {[%emt 0:00:03]} (18. Bxe6 $1 $16 fxe6 19. Nxe6) 18... dxc5 $15 {[%emt 0:00:05][%cal Oc4b2] And now ...Nxb2! would win.} 19. Nd3 {[%emt 0:00:01]} hxg5 {[%emt 0:00:05]} (19... h5 $11) 20. hxg5 $14 {[%emt 0:00:03]} Qa5 {[%emt 0:00:03]} (20... a5 $1 $14) 21. Bxc5 $16 {[%emt 0:00:09]} ({Not} 21. Nxc5 Nxa3+ 22. Kc1 (22. bxa3 $2 {too greedy.} Bxc3 23. Nxb7 Qxa3 $19) 22... Rxc5 23. Bxc5 Nc4 $19) 21... Nxa3+ $2 {[%emt 0:00:10][%mdl 8192] [#]} 22. bxa3 $2 {[%emt 0:00:03]} ({White must play} 22. Bxa3 $18 Rc4 23. Nc5) 22... Qxc3 $11 {[%emt 0:00:09]} 23. Qxc3 {[%emt 0:00:02]} Bxc3 {[%emt 0:00:09]} 24. Bb4 {[%emt 0:00:09]} Bd4 {[%emt 0:00:05] Weighted Error Value: White=0.64/Black=0.63.  Loses game:     	---       	Black=1      Missed win:     	White=1     	---        Mistake:       	White=4     	Black=5      Inaccurate:     	White=4     	Black=2      OK:         	White=3     	Black=4      Best:        	White=2     	Black=1} 1/2-1/2

[Event "WWRR B-Group 2024"]
[Site "Wachtebeke"]
[Date "2024.02.13"]
[Round "6.3"]
[White "Verduyn, Frederic"]
[Black "Vandenhole, Kobe"]
[Result "*"]
[ECO "B07"]
[WhiteElo "2087"]
[BlackElo "2081"]
[Annotator "NA RC"]
[PlyCount "77"]
[EventDate "2024.02.12"]
[EventType "tourn"]
[EventCountry "BEL"]
[SourceTitle "playchess.com"]
[Source "ChessBase"]
[SourceQuality "1"]
[TimeControl "40/5400+30:900+30"]

1. e4 {[%emt 0:00:05]} g6 {[%emt 0:00:11]} 2. d4 {[%emt 0:01:06]} Bg7 {[%emt 0:00:06]} 3. Nf3 {[%emt 0:05:17]} d6 {[%emt 0:00:06]} 4. Bd3 {[%emt 0:00:09]} Nf6 {[%emt 0:00:07]} 5. O-O {[%emt 0:00:27]} O-O {[%emt 0:00:13]} 6. c3 {[%emt 0:00:55]} Nc6 {[%emt 0:03:50]} 7. Re1 {[%emt 0:01:26]} e5 {[%emt 0:00:23]} 8. h3 {[%emt 0:02:18]} Re8 {[%emt 0:00:38]} 9. dxe5 {[%emt 0:01:35]} Nxe5 {[%emt 0:00:51]} 10. Nxe5 {[%emt 0:00:44]} dxe5 {[%emt 0:00:11]} 11. Be3 {[%emt 0:02:08]} c6 {[%emt 0:01:31]} 12. a4 {[%emt 0:00:27]} Be6 {[%emt 0:01:24]} 13. Qc2 {[%emt 0:08:51]} Qc7 {[%emt 0:02:47]} 14. Nd2 {[%emt 0:07:49]} Red8 {[%emt 0:05:53]} 15. a5 {[%emt 0:10:33]} Nh5 {[%emt 0:19:04]} 16. Nc4 {[%emt 0:03:14]} f6 {[%emt 0:07:47]} 17. Bf1 {[%emt 0:05:51]} Qf7 {[%emt 0:01:46]} 18. b3 {[%emt 0:00:15]} Bf8 {[%emt 0:21:56]} 19. Rad1 {[%emt 0:03:31]} c5 {[%emt 0:03:05]} 20. Nd2 {[%emt 0:18:02]} Qc7 {[%emt 0:13:23]} 21. Bc4 {[%emt 0:00:09]} Ng7 {[%emt 0:00:06]} 22. Bh6 {[%emt 0:02:54]} Bxc4 {[%emt 0:06:44]} 23. Nxc4 {[%emt 0:00:05]} Ne6 {[%emt 0:00:05]} 24. Bc1 {[%emt 0:00:37]} Qe7 {[%emt 0:02:21]} 25. Ne3 {[%emt 0:13:54]} Nc7 {[%emt 0:00:43]} 26. Qe2 {[%emt 0:01:42]} Qe6 {[%emt 0:00:58]} 27. Qc4 {[%emt 0:00:28]} Kf7 {[%emt 0:01:27]} 28. Nd5 {[%emt 0:00:40]} Nxd5 {[%emt 0:01:30]} 29. exd5 {[%emt 0:00:14]} Qa6 {[%emt 0:00:41]} 30. Qh4 {[%emt 0:07:12]} Bg7 {[%emt 0:03:45]} 31. f4 {[%emt 0:00:46]} Kg8 {[%emt 0:01:33]} 32. fxe5 {[%emt 0:00:22]} fxe5 {[%emt 0:00:02]} 33. Bh6 {[%emt 0:01:34]} Bxh6 {[%emt 0:01:03]} 34. Qxh6 {[%emt 0:00:07]} Qd6 {[%emt 0:00:35]} 35. Qg5 {[%emt 0:00:54]} Re8 {[%emt 0:00:23]} 36. Re4 {[%emt 0:01:00]} Re7 {[%emt 0:00:25]} 37. Rde1 {[%emt 0:00:28]} Rae8 {[%emt 0:00:16]} 38. c4 {[%emt 0:01:41]} Kg7 {[%emt 0:00:03]} 39. Rf1 {[%emt 0:00:46]} *